Cogmind - Beta 16 @@@ ROGUE MODE // 2026.01.30 @ 14:32:31 Player: ILikeVoltron Result: Destroyed by H-61 Shepherd with Heavy Assault Cannon Performance ------------- Evolutions (2) 1000 Regions Visited (5) 1000 Robots Destroyed (84) 420 Value Destroyed (2592) 2592 Prototype IDs (2) 40 Alien Tech Used (0) 0 Bonus (200) 200 TOTAL SCORE: 5252 Bonus ------- Entered Garrisons 200 Cogmind --------- Core Integrity 0/550 Matter 266/300 Energy 100/100 System Corruption 7% Temperature Cool (0) Movement Walking (400) Ox4 Location -8/Materials Parts ------- > --- POWER (1) -------- (None) > --- PROPULSION (4) --- Aluminum Leg > --- UTILITY (4) ------ Improved Heat Sink High-capacity Storage Unit Advanced Targeting Computer Improved Power Shielding > --- WEAPON (2) ------- Mini Grenade Launcher > --- INVENTORY (20) --- Improved Ion Engine Improved Heat Sink Large Storage Unit High-capacity Matter Pod (200) Structural Scanner Trap Scanner Improved Terrain Scanner Weapon Shielding Light Armor Plating Light Armor Plating Relay Coupler [NC] (21) Relay Coupler [NC] (28) Relay Coupler [Swarmer] (23) Relay Coupler [Grunt] (31) Relay Coupler [Sentry] (23) Relay Coupler [Hunter] (13) Shotgun Mining Laser Peak State ------------ > --- POWER ------------ Light Angular Momentum Engine > --- PROPULSION ------- Advanced Treads Carbon-fiber Leg Armored Wheel > --- UTILITY ---------- Improved Heat Sink High-capacity Storage Unit Improved Targeting Computer Improved Power Shielding > --- WEAPON ----------- Heavy EM Shotgun Field Laser > --- INVENTORY -------- Improved Ion Engine Improved Heat Sink Large Storage Unit High-capacity Matter Pod Structural Scanner Trap Scanner Improved Terrain Scanner Weapon Shielding Light Armor Plating Light Armor Plating Relay Coupler [NC] Relay Coupler [NC] Relay Coupler [Swarmer] Relay Coupler [Grunt] Relay Coupler [Sentry] Relay Coupler [Hunter] Particle Gun Mini Grenade Launcher Mini Grenade Launcher Mining Laser [Rating: 33] Favorites ----------- Power Ion Engine Engine Ion Engine Propulsion Light Treads Treads Light Treads Leg Aluminum Leg Wheel Armored Wheel Utility Large Storage Unit Device Improved Heat Sink Storage Large Storage Unit Processor Terrain Scan Processor Hackware Hacking Suite Protection Hardened Light Armor Plating Weapon Beam Cannon Energy Gun Field Laser Energy Cannon Beam Cannon Ballistic Gun Assault Rifle Launcher Mini Grenade Launcher Special Weapon Mining Laser Build | -11 -10 -9 -8 -8 -8 ------- Run | Yrd Mat Mat Mat Gar Mat Slots Evolved 4 | . . 2 2 . . Power . | . . . . . . Propulsion 2 | . . 1 1 . . Utility 2 | . . 1 1 . . Weapon . | . . . . . . Parts Attached 56 | 3 11 16 15 3 8 Power 5 | . . 3 1 . 1 Engine 5 | . . 3 1 . 1 Core . | . . . . . . Reactor . | . . . . . . Propulsion 15 | . 2 7 3 . 3 Treads 6 | . 2 . 3 . 1 Leg 5 | . . 3 . . 2 Wheel 4 | . . 4 . . . Hover . | . . . . . . Flight . | . . . . . . Utility 18 | 2 4 2 5 3 2 Device 8 | 2 1 1 3 1 . Storage 4 | . 3 . . 1 . Processor 3 | . . 1 . 1 1 Hackware 1 | . . . 1 . . Protection 2 | . . . 1 . 1 Artifact . | . . . . . . Weapon 18 | 1 5 4 6 . 2 Energy Gun 7 | 1 . 2 4 . . Energy Cannon 4 | . 2 2 . . . Ballistic Gun 4 | . 2 . . . 2 Ballistic Cannon . | . . . . . . Launcher 2 | . . . 2 . . Special Weapon 1 | . 1 . . . . Impact Weapon . | . . . . . . Slashing Weapon . | . . . . . . Piercing Weapon . | . . . . . . Special Melee Weapon . | . . . . . . Unidentified Prototypes 2 | . . . 1 . 1 Parts Lost 23 | . . 6 5 5 7 Power 5 | . . 3 . 1 1 Propulsion 10 | . . 2 1 3 4 Utility 3 | . . . 2 1 . Weapon 5 | . . 1 2 . 2 Highest Loss Streak 4 | . . 2 4 3 4 To Critical Strikes 1 | . . . 1 . . Average Backups 14 | 6 13 14 14 17 19 Power 1 | 1 1 1 1 1 1 Propulsion 1 | 3 2 2 . . . Utility 7 | . 4 6 8 12 14 Weapon 3 | 1 5 4 2 3 3 Tool/Special . | . . . . . . Unused Backups 31 | 6 6 4 2 . 13 Power 4 | 1 . 2 . . 1 Propulsion 5 | 3 1 1 . . . Utility 15 | 1 2 . 1 . 11 Weapon 7 | 1 3 1 1 . 1 Tool/Special . | . . . . . . Average Slot Usage (%) 94 | . 99 95 99 84 83 Engine 10 | . 14 10 9 8 8 Treads 15 | . 25 . 19 16 10 Leg 8 | . 2 14 13 1 7 Wheel 6 | . . 17 2 6 3 Device 8 | . 3 11 10 11 9 Storage 13 | . 24 11 9 9 9 Processor 5 | . . 10 5 3 9 Hackware 1 | . . . 3 3 . Protection 3 | . . . 6 6 8 Energy Gun 8 | . 4 8 5 15 11 Energy Cannon 4 | . 1 10 7 . . Ballistic Gun 6 | . 21 . . . 2 Launcher 1 | . . . 3 . 2 Peak Build Rating 33 | 9 10 17 26 26 33 Average Rating 16 | 7 8 14 20 23 27 On Entrance 15 | 6 8 10 15 26 25 Avg Prop Armor Cover (%) 8 | . . 7 7 10 10 Naked Turns . | . . . . . . Heaviest Build 60 | 13 32 32 40 60 59 Greatest Support 62 | 20 40 36 62 62 42 Greatest Overweight (x) 4 | . . 1 3 4 4 Average Overweight (x) . | . . . . 2 3 Largest Inventory Capacity 20 | 8 15 15 15 20 20 Average Capacity 15 | 8 14 15 15 18 20 Most Carried 20 | 8 15 15 15 20 20 Average Carried 14 | 7 13 14 14 18 19 Final Capacity 20 | 8 15 15 15 20 20 Final Carried 19 | 8 15 14 15 19 18 Class Distribution -------------------- 69% | Mutant 27% | Scavenger-Mutant 3% | Scavenger-Skirmisher Dominant Class ---------------- Mutant | -10/Materials Mutant | -9/Materials Scavenger-Mutant | -8/Materials Mutant | -8/Garrison Scavenger-Mutant | -8/Materials Resources | -11 -10 -9 -8 -8 -8 ----------- Run | Yrd Mat Mat Mat Gar Mat Matter Collected 1709 | 319 376 424 232 125 233 Remotely . | . . . . . . Salvage Created 2889 | 196 466 866 710 230 421 Parts 165 | 15 34 47 46 9 14 Haulers Intercepted 3 | . . 2 1 . . Recyclers Shooed 2 | . . 1 1 . . Parts Field Recycled . | . . . . . . Retrieved Matter . | . . . . . . Parts Self-Destructed . | . . . . . . Prevented . | . . . . . . Parts Restored . | . . . . . . Kills | -11 -10 -9 -8 -8 -8 ------- Run | Yrd Mat Mat Mat Gar Mat Combat Hostiles Destroyed 57 | . 10 17 16 4 10 Guns 35 | . 10 6 8 4 7 Cannons 13 | . . 9 4 . . AOE 7 | . . . 4 . 3 Classes Destroyed 13 | 3 3 3 3 . 1 Worker 8 | 2 4 . 1 . 1 Builder 1 | . . . 1 . . Tunneler 5 | 3 1 1 . . . Hauler 3 | . . 2 1 . . Recycler 3 | 1 . 1 1 . . Operator 3 | . . 1 2 . . Watcher 4 | . 2 2 . . . Swarmer 16 | . 4 5 7 . . Grunt 29 | . 6 8 5 3 7 Brawler 1 | . . . 1 . . Sentry 7 | . . 4 2 . 1 Specialist 2 | . . . . . 2 Hunter 2 | . . . 1 1 . Best Kill Streak 6 | 4 6 6 5 2 4 Combat Bots Only 6 | . 5 6 4 2 3 Max Kills in Single Turn 2 | 1 2 2 2 1 2 Gunslinging . | . . . . . . Exploded 1 | . . . 1 . 1 Melee . | . . . . . . Uniques/NPCs Destroyed . | . . . . . . Combat | -11 -10 -9 -8 -8 -8 -------- Run | Yrd Mat Mat Mat Gar Mat Hostile Shots Fired 368 | . 46 95 84 38 105 Missed 105 | . 11 26 26 7 35 Hits 263 | . 35 69 58 31 70 Melee 2 | . . . 2 . . Projectile 261 | . 35 69 56 31 70 AOE 1 | . . . 1 . . Critical Strikes 14 | . 1 4 2 1 6 Damage Taken 3862 | . 427 808 875 500 1252 Core 694 | . 56 79 97 97 365 Absorbed by Shields . | . . . . . . Redirected to Shielding 98 | . . . . . 98 Core Remaining (%) 85 | 100 77 80 . . . Volleys Fired 209 | 16 42 52 43 17 39 Largest 2 | 2 2 2 2 2 2 Hottest 123 | 80 100 110 123 113 113 Shots Fired 394 | 32 83 102 80 30 67 Gun 284 | 32 82 50 35 26 59 Cannon 89 | . . 52 37 . . Launcher 15 | . . . 7 . 8 Special 6 | . 1 . 1 4 . Kinetic 101 | . 82 . . . 19 Thermal 237 | 32 1 102 59 17 26 Explosive 15 | . . . 7 . 8 Electromagnetic 41 | . . . 14 13 14 Robot Hit Streak 20 | 4 12 11 9 20 14 Robot Miss Streak 4 | 4 3 3 4 2 3 Penetration Max . | . . . . . . Secondary Targets 2 | . . . . 2 . Max Gunslinging Chain 1 | . . . . 1 . Shots Hit Robots 257 | 16 51 66 48 22 54 Core Hits 132 | 7 24 29 33 10 29 Critical Kills 2 | . . 2 . . . Critical Parts Destroyed . | . . . . . . Critical Strikes 4 | . . 3 1 . . Burn 2 | . . 1 1 . . Meltdown 2 | . . 2 . . . Melee Attacks . | . . . . . . Impact . | . . . . . . Slashing . | . . . . . . Piercing . | . . . . . . Sneak Attacks . | . . . . . . Combat Hostiles . | . . . . . . Follow-up Attacks . | . . . . . . Damage Inflicted 5173 | 175 610 1085 1239 591 1473 Guns 2853 | 175 610 364 353 473 878 Cannons 1072 | . . 721 351 . . Explosions 1248 | . . . 535 118 595 Melee . | . . . . . . Ramming . | . . . . . . Kinetic 867 | . 610 . . . 257 Thermal 2617 | 175 . 1085 660 269 428 Explosive 936 | . . . 389 . 547 Electromagnetic 753 | . . . 190 322 241 Impact . | . . . . . . Slashing . | . . . . . . Piercing . | . . . . . . Highest Corruption 7 | . . . 7 7 7 Average Corruption 7 | . . . 7 7 7 Corruption Purged . | . . . . . . Corruption Blocked . | . . . . . . Effects 44 | . . . 22 11 11 Message Errors 10 | . . . 5 3 2 Matter Fused 7 | . . . 2 1 4 Heat Flow Errors 5 | . . . 3 . 2 Energy Discharges 4 | . . . 2 2 . Parts Rejected 1 | . . . 1 . . Data Loss (minor) 10 | . . . 6 3 1 Data Loss (major) 2 | . . . 1 1 . Misfires 1 | . . . 1 . . Alerts 2 | . . . 1 1 . Weapon Failures 2 | . . . . . 2 Overload Shots . | . . . . . . Overflow Damage 53 | . . 16 33 . 4 Projectiles 16 | . . 16 . . . Explosions 37 | . . . 33 . 4 Melee . | . . . . . . Knockbacks . | . . . . . . Impact . | . . . . . . Kinetic . | . . . . . . Secondary . | . . . . . . Self-Inflicted Damage 23 | . . . 3 . 20 Shots 2 | . . . 1 . 1 Rammed . | . . . . . . Targets Rammed . | . . . . . . Kicked . | . . . . . . Crushed . | . . . . . . Highest Temperature 224 | 90 20 78 224 153 204 Average Temperature 41 | 31 7 20 53 55 34 Received Heat Transfer 1530 | . 234 357 264 207 468 Effects 1 | . . . 1 . . Energy Bleed 1 | . . . 1 . . Siege Activations . | . . . . . . Martial Activations . | . . . . . . Shielding Activations . | . . . . . . Robots Disrupted . | . . . . . . Combat Hostiles . | . . . . . . Robots Corrupted . | . . . . . . Combat Hostiles . | . . . . . . Parts Fried 1 | . . . . 1 . Impact Corruptions . | . . . . . . Robots Melted 2 | . . 2 . . . Combat Hostiles 2 | . . 2 . . . Parts Melted 6 | . . 5 . . 1 Heat Transferred 5782 | 400 . 2664 1371 483 864 Parts Sabotaged . | . . . . . . Parts Stolen . | . . . . . . Parts Stripped . | . . . . . . Power Chain Reactions 4 | . . . 2 1 1 Alert | -11 -10 -9 -8 -8 -8 ------- Run | Yrd Mat Mat Mat Gar Mat Maximum Alert Level 1 | . . 1 1 1 1 Low Security (%) 73 | 100 100 85 80 . 42 Level 1 26 | . . 14 19 100 57 Level 2 . | . . . . . . Level 3 . | . . . . . . Level 4 . | . . . . . . Level 5 . | . . . . . . High Security . | . . . . . . Max Security . | . . . . . . Peak Influence 365 | 10 194 327 365 357 361 Initial 226 | . . 36 133 226 173 Average 146 | 1 89 101 173 308 219 Influence Increases 2134 | 30 358 619 568 181 378 Destroy 0b10 Robot/C 1140 | . 200 340 320 80 200 Destroy 0b10 Robot/NC 135 | 30 35 35 30 . 5 Destroy Leader 254 | . 44 88 72 . 50 Successful Hack 26 | . . 19 7 . . Disable Machine 90 | . . 30 60 . . Anti-Garrison Action 100 | . . . . 100 . Destroy Structure 104 | . 4 2 49 1 48 Partial Spotted 15 | . . 15 . . . Lose Combat Pursuer 270 | . 75 90 30 . 75 Influence Decreases 1803 | 30 271 390 535 173 404 Entered New Map 541 | . . 51 183 123 184 Time Decay 1032 | 30 271 279 302 . 150 Lost Part 230 | . . 60 50 50 70 Squads Dispatched 6 | . 2 1 1 . 2 Investigation 1 | . 1 . . . . Extermination . | . . . . . . Reinforcement 5 | . 1 1 1 . 2 Assault . | . . . . . . Garrison . | . . . . . . Intercept . | . . . . . . Searches Triggered . | . . . . . . Construction Impeded 1 | . . . . . 1 Haulers Reinforced . | . . . . . . Active Scanning Responses . | . . . . . . Cargo Convoy Interrupts . | . . . . . . Stealth | -11 -10 -9 -8 -8 -8 --------- Run | Yrd Mat Mat Mat Gar Mat Distress Signals 8 | . 2 1 5 . . Communications Jammed . | . . . . . . Distress Signals . | . . . . . . Times Spotted 89 | . 16 29 25 4 15 Peak Tracking Total 6 | . 3 6 4 3 4 Tactical Retreats 11 | . 3 2 1 . 5 Traps | -11 -10 -9 -8 -8 -8 ------- Run | Yrd Mat Mat Mat Gar Mat Traps Triggered 4 | . 2 . . 2 . Indirectly . | . . . . . . Trap Hack Attempts . | . . . . . . Triggered . | . . . . . . Disarmed . | . . . . . . Reprogrammed . | . . . . . . Reused . | . . . . . . Traps Extracted . | . . . . . . Installed . | . . . . . . Triggered . | . . . . . . Machines | -11 -10 -9 -8 -8 -8 ---------- Run | Yrd Mat Mat Mat Gar Mat Machines Disabled 8 | . . 2 4 2 . Max in Single Turn 2 | . . 1 2 1 . Garrison Relay 2 | . . . . 2 . Machines Repaired . | . . . . . . Machines Dismantled . | . . . . . . Machines Sabotaged . | . . . . . . Overloaded Fab Kills . | . . . . . . Hacking | -11 -10 -9 -8 -8 -8 --------- Run | Yrd Mat Mat Mat Gar Mat Machines Accessed 13 | . 1 6 4 1 1 Terminals 11 | . 1 6 2 1 1 Fabricators . | . . . . . . Repair Stations . | . . . . . . Recycling Units . | . . . . . . Scanalyzers 1 | . . . 1 . . Garrison Access 1 | . . . 1 . . Total Hacks 27 | . 1 15 8 2 1 Successful 14 | . 1 7 6 . . Failed 12 | . . 8 1 2 1 Catastrophic 1 | . . . . . 1 Database Lockouts 1 | . . . 1 . . Manual 7 | . . 6 1 . . Terminals 24 | . 1 15 5 2 1 Fabricators . | . . . . . . Repair Stations . | . . . . . . Recycling Units . | . . . . . . Scanalyzers 2 | . . . 2 . . Garrison Access 1 | . . . 1 . . Terminal Hacks 8 | . 1 4 3 . . Scanalyzer Index 1 | . . . 1 . . Alert Level 2 | . . 1 1 . . Locate Traps 1 | . . . 1 . . Transport Status 1 | . . 1 . . . Registered Components 1 | . . 1 . . . Zone Layout 2 | . 1 1 . . . Fabricator Hacks . | . . . . . . Repair Station Hacks . | . . . . . . Recycling Unit Hacks . | . . . . . . Scanalyzer 1 | . . . 1 . . Retrieve Study 1 | . . . 1 . . Garrison Access Hacks 1 | . . . 1 . . Unlock Access 1 | . . . 1 . . Unauthorized Hacks 4 | . . 3 1 . . Terminals 4 | . . 3 1 . . Track 3 | . . 2 1 . . Botnet 1 | . . 1 . . . Fabricators . | . . . . . . Repair Stations . | . . . . . . Recycling Units . | . . . . . . Scanalyzers . | . . . . . . Garrison Access . | . . . . . . Data Cores Recovered 2 | . . 1 1 . . Used 1 | . . . 1 . . Hacking Detections 9 | . 1 3 3 1 1 Full Trace Events . | . . . . . . Feedback Events . | . . . . . . Feedback Blocked . | . . . . . . Robot Schematics Acquired . | . . . . . . Robots Built . | . . . . . . Authchips . | . . . . . . Time . | . . . . . . Total Robot Build Rating . | . . . . . . Part Schematics Acquired . | . . . . . . Parts Built . | . . . . . . Authchips . | . . . . . . Time . | . . . . . . Total Part Build Rating . | . . . . . . Part Studies Acquired 1 | . . . 1 . . Parts Repaired . | . . . . . . Time . | . . . . . . Parts Recycled . | . . . . . . Recycled Matter . | . . . . . . Retrieved Matter . | . . . . . . Retrieved Components . | . . . . . . Parts Scanalyzed . | . . . . . . Part Schematics Acquired . | . . . . . . Parts Damaged . | . . . . . . Bothacking | -11 -10 -9 -8 -8 -8 ------------ Run | Yrd Mat Mat Mat Gar Mat Used RIF Installer . | . . . . . . Robots Hacked . | . . . . . . Non-combat . | . . . . . . Combat . | . . . . . . Robot Hacks Applied . | . . . . . . Relay Couplers Released 7 | . . . . 7 . Machine Destruction 7 | . . . . 7 . Fabnet Peak Effective % . | . . . . . . Robots Rewired . | . . . . . . Allies Hacked . | . . . . . . Hacks Repelled . | . . . . . . Allies | -11 -10 -9 -8 -8 -8 -------- Run | Yrd Mat Mat Mat Gar Mat Total Allies . | . . . . . . Largest Group . | . . . . . . Highest-Rated Group . | . . . . . . Highest-Rated Ally . | . . . . . . Initial Warlord ECA Mod 2 | . . . . . 2 Total Orders . | . . . . . . Ally Attacks . | . . . . . . Total Damage . | . . . . . . Kills . | . . . . . . Allies Corrupted . | . . . . . . Allies Melted . | . . . . . . Intel | -11 -10 -9 -8 -8 -8 ------- Run | Yrd Mat Mat Mat Gar Mat Active Infowar (turns) 636 | 117 124 236 159 . . Terrain 414 | 28 . 236 150 . . Traps 104 | . . . 104 . . Seismic 267 | 89 124 . 54 . . Robot Analysis Total . | . . . . . . Derelict Logs Recovered . | . . . . . . Drone Launches . | . . . . . . Drone Recoveries . | . . . . . . Exploration | -11 -10 -9 -8 -8 -8 ------------- Run | Yrd Mat Mat Mat Gar Mat Turns Passed 3005 | 180 783 678 673 372 319 Spaces Moved 1469 | 86 379 425 313 176 90 Core . | . . . . . . Treads 699 | . 334 . 285 54 26 Legs 297 | 86 45 153 1 . 12 Wheels 473 | . . 272 27 122 52 Hover . | . . . . . . Flight . | . . . . . . Fastest Speed 90 | 120 120 90 105 150 150 Average Speed 141 | 120 155 107 154 151 195 Slowest Speed 400 | 120 160 190 190 212 400 Overloaded Moves . | . . . . . . Propulsion Burnouts . | . . . . . . Robots Hopped . | . . . . . . Potential Cave-ins . | . . . . . . Cave-ins Triggered . | . . . . . . Exploration Rate (%) 31 | 5 64 36 39 32 10 Regions Visited 5 Branch Regions . Pre-discovered Areas . | . . . . . . Known Exits Taken 1 | . . . 1 . . Unknown Exits Taken 3 | 1 1 1 . . . Scrap Searched . | . . . . . . Spaces Dug 2 | . 1 . 1 . . Terrain Destroyed 116 | . 1 . 57 1 57 Melee . | . . . . . . Projectile 2 | . 1 . 1 . . AOE 114 | . . . 56 1 57 Terrain Rammed . | . . . . . . Walls Destroyed . | . . . . . . Machines Disabled . | . . . . . . Actions | -11 -10 -9 -8 -8 -8 --------- Run | Yrd Mat Mat Mat Gar Mat Total 1985 | 129 491 544 418 240 163 Wait 128 | 21 35 16 23 16 17 Move 1465 | 85 378 424 313 175 90 Hop . | . . . . . . Pick Up 49 | 3 14 15 8 8 1 Fast Attach 18 | 1 2 4 5 1 5 Attach 16 | . . 6 6 3 1 Detach 4 | . . 2 1 . 1 Swap 45 | 2 9 12 13 4 5 Drop 35 | 1 11 13 6 . 4 Fire 209 | 16 42 52 43 17 39 Melee . | . . . . . . Ram . | . . . . . . Kick . | . . . . . . Crush . | . . . . . . Escape Stasis 16 | . . . . 16 . Rewire . | . . . . . . Trap . | . . . . . . Miscellaneous . | . . . . . . Route ------- -11/Scrapyard -10/Materials (discovered 2 exits: *Mat / [*Min]) -9/Materials (discovered 2 exits: *Mat / [*Min]) -8/Materials -8/Garrison -8/Materials (discovered 1 exit: [*Sto]) History --------- Turn | Location | Event 28 | -11/Scrapyard | Discovered new exit (range 3) 181 | -11/Scrapyard | Entered Materials 326 | -10/Materials | Build established: Mutant 547 | -10/Materials | Discovered new exit (range 6) 874 | -10/Materials | Discovered new exit (range 16) 964 | -10/Materials | Entered another Materials area 964 | -9/Materials | Evolved 2 slots: Propulsion x1, Utility x1 1446 | -9/Materials | Discovered new exit (range 13) 1632 | -9/Materials | Discovered new exit (range 6) 1642 | -9/Materials | Entered another Materials area 1642 | -8/Materials | Evolved 2 slots: Propulsion x1, Utility x1 1732 | -8/Materials | Lost 4 parts (1n2u1w) 1826 | -8/Materials | Central database locked down 2315 | -8/Materials | Identified exit to Garrison 2315 | -8/Materials | Entered Garrison 2337 | -8/Garrison | Build established: Scavenger-Mutant 2369 | -8/Garrison | Triggered checkpoint 2408 | -8/Garrison | Garrison Relay disabled 2429 | -8/Garrison | Garrison Relay disabled 2527 | -8/Garrison | Triggered checkpoint 2599 | -8/Garrison | Lost 3 parts (1p1n1u) 2663 | -8/Garrison | Discovered new exit (range 15) 2687 | -8/Garrison | Entered Materials 2747 | -8/Materials | Build established: Mutant 2878 | -8/Materials | Core integrity fell below 50% 2992 | -8/Materials | Discovered new exit (range 15) 2996 | -8/Materials | Core integrity fell below 20% 3006 | -8/Materials | Destroyed by H-61 Shepherd with Heavy Assault Cannon Last Messages --------------- 02972_ Destroyed Carbon-fiber Leg. 02972_ X-57 Shotgunner destroyed. 02973_ Acquired 3 matter. 02974_ The unstable cave ceiling collapses. 02975_ X-57 Shotgunner destroyed. 02979_ The unstable cave ceiling collapses. 02984_ System corrupted: Heat flow error (+242). 02988_ Acquired 3 matter. 02989_ The unstable cave ceiling collapses. 02992_ G-47 Trooper destroyed. 02992_ EXIT=FOUND 02993_ Penetrated by Slug. 02995_ Lgt. Angular Momentum Engine destroyed. 02995_ Lgt. Treads+ destroyed. 02999_ The unstable cave ceiling collapses. 02999_ Slug penetrates Earth. 03002_ The unstable cave ceiling collapses. 03004_ Mni. Grenade Launcher destroyed. 03005_ The unstable cave ceiling collapses. 03005_ U-05 Engineer lays Concrete. Map ----- +----------------------------------------------------+ | ?????????????????????????????????? | | ?????????????????????????????????? | | ?????????????????????????????????? | | ?????????????????????????????????? | | ?????????????????????????????????? | | ?????????????????????????????????? | | ?????????????????????????????????? | | ?????????????????????????????????? | | ?????????????????????????????????? | | ?????????????????????????????????? | | ????????????????? H??????????????? | | ???????????????? ????????????? | | ?????????????### ????????????? | | ????????????# #????????????? | | ????????#### g #????????????? | | ????????# rt #????????????? | | ????????# !!! =g ?????????????? | | ######### ???????????????? | | #! # # ????????????????? | | # #?????????????????? | | # ;### #????????????? | | # ! % % #????????????? | | # [ #### #????????????? | | # % ##??????????????????? | | # # #??????????????????? | | ##### ##@ # ##??????????????????? | | ????# # ##???????????????????? | | ????#### %##????????????????????? | | ???????## ##?????????????????????? | | ?????####u#####??????????????????? | | ?????# #??????????????????? | | ?????# #??????????????????? | | ?????# #??????????????????? | | ?????# #??????????????????? | | ?????# #??????????????????? | | ?????# #??????????????????? | | ?????# #??????????????????? | | ?????# #?????#????????????? | | ?????# #???? #????????????? | | ?????#####+####??? #????????????? | | ???????# % #### ####?????????? | | ???????# ????????? | | ???????# " ????????? | | ???????# ????????? | | ???????# ###+########????????? | | ######### ##???????????????????? | | # !! # #????????????????????? | | # ! # #????????????????????? | | # ! + #????????????????????? | | # # #????????????????????? | +----------------------------------------------------+ Best States ------------- Heat Dissipation 59 Energy Generation 18 Energy Capacity 265 Matter Stores 450 Matter Capacity 450 Sight Range 16 Terrain Scan Range 16 Terrain Scan Density 85 Armor Coverage 150 Power Shielding 66 Evasion (%) 55 Targeting Accuracy 8 Recoil Reduction 3 Offensive Hacking 10 Item Schematics ----------------- None Robot Schematics ------------------ None Fabricated ------------ Nothing Repaired ---------- Nothing Studied --------- Lgt. Treads | -8/Materials | Hacked Alien Tech Used ----------------- None Achievements -------------- None Challenges ------------ None Game ------ Seed SmallDispersalSabre Manual? 0 Play Time 00:43:13 Cumulative 184.1 hours Start 2026.01.29 @ 11:34:29 End 2026.01.30 @ 14:32:31 Sessions 5 Manual Loads 0 Difficulty Rogue Special Mode None Game No. 306 Rogue 302 Adventurer 0 Explorer 4 Win Type - Total 0 Types 0/0/0/0/0/0/0/0/0/0 Lore% 27 Gallery% 44 Achievement% 30 Wizard Run 0 Options --------- Layout 0 ASCII 0 Keyboard 1 Movement Arrows Keybinds 0 Fullscreen 1 Font 24/Smallcaps Map View 183x50 Zoom Use 0% Tactical HUD 1 Map Filters NONE Filters NONE Steam 1 RUN: 74492d77-f06e-4ded-85fb-0c5a7cd42936